bitfinex/quotes_SOLUSD_20220113
["timestamp","ask_amount","ask_price","bid_price","bid_amount"]
[1642072773456,34.51140263,150.6,150.51,9.9641]
[1642072773655,34.26140263,150.6,150.51,9.9641]
[1642072773855,31.60440263,150.6,150.52,2.656]
[1642072774153,31.60440263,150.6,150.55,9.9615]
[1642072774754,2.656,150.61,150.55,9.9615]
[1642072774956,2.906,150.61,150.55,9.9615]
[1642072775755,2.656,150.61,150.55,9.9615]
[1642072775955,30.60777758,150.63,150.55,9.9615]
[1642072776158,27.95177758,150.63,150.55,9.9615]
[1642072776782,24.15310677,150.63,150.55,9.9615]
[1642072776984,24.15310677,150.63,150.57,9.9604]
[1642072777385,5.22007143,150.64,150.57,9.9604]
[1642072777586,1.42140062,150.64,150.57,9.9604]
[1642072777985,1.42140062,150.64,150.57,76.0604]
[1642072778386,2.656,150.65,150.58,2.654]
[1642072778584,2.656,150.65,150.59,27.72222517]
[1642072778788,2.656,150.65,150.62,23.72373836]
[1642072779085,2.656,150.65,150.63,5.56439994]
[1642072779486,2.656,150.65,150.63,5.81439994]
[1642072780085,2.656,150.65,150.64,9.9553]
[1642072780485,3.79867081,150.72,150.64,10.2053]
[1642072780687,3.79867081,150.72,150.65,32.080146]
[1642072780888,3.79867081,150.72,150.65,97.930146]
[1642072781087,3.79867081,150.72,150.65,98.180146]
[1642072781287,3.79867081,150.72,150.68,9.9526]
[1642072781490,3.79867081,150.72,150.68,10.2026]
[1642072781687,2.654,150.77,150.69,2.654]
[1642072781688,3.79867081,150.77,150.69,2.654]
[1642072782088,3.79867081,150.77,150.7,28.74675885]
[1642072782288,3.79867081,150.77,150.73,9.9496]
[1642072782488,3.79867081,150.77,150.73,38.35645872]
[1642072782688,3.79867081,150.77,150.73,9.9496]
[1642072783289,1.64999521,150.77,150.7,9.9518]
[1642072783488,2.653,150.76,150.7,9.9518]
[1642072783888,2.653,150.76,150.71,24.01264295]
[1642072784689,2.653,150.76,150.71,33.96364295]
[1642072784892,12.6036,150.79,150.71,33.96364295]
[1642072785092,2.653,150.79,150.71,33.96364295]
[1642072785291,2.653,150.8,150.71,33.96364295]
[1642072785491,2.653,150.8,150.71,34.21364295]
[1642072785892,2.653,150.81,150.72,2.653]
[1642072786193,27.14126866,150.81,150.74,35.25897772]
[1642072786394,4.30299521,150.81,150.74,35.25897772]
[1642072786894,4.30299521,150.81,150.74,25.31017772]
[1642072787094,14.25209521,150.81,150.74,25.31017772]
[1642072787494,14.50209521,150.81,150.69,2.652]
[1642072787894,14.50209521,150.81,150.69,2.902]
[1642072788595,14.50209521,150.81,150.7,27.81103473]
[1642072789202,14.50209521,150.81,150.71,9.9511]
[1642072789398,14.50209521,150.81,150.7,27.81103473]
[1642072789797,24.00209521,150.81,150.69,2.652]
[1642072789999,85.52365413,150.81,150.69,2.652]
[1642072790299,65.85,150.8,150.62,74.9302]
[1642072790499,9.955,150.72,150.62,74.9302]
[1642072790903,10.205,150.72,150.63,29.44769781]
[1642072791102,12.859,150.72,150.64,2.654]
[1642072791301,2.654,150.73,150.65,9.955]
[1642072791502,24.6661,150.74,150.66,2.654]
[1642072791704,9.9532,150.74,150.66,2.654]
[1642072791904,10.2032,150.74,150.66,2.904]
[1642072792203,10.2032,150.74,150.66,26.36205989]
[1642072792503,2.904,150.74,150.67,9.9538]
[1642072792703,10.2033,150.74,150.68,2.654]
[1642072792903,27.57252248,150.75,150.66,26.36205989]
[1642072793303,27.57252248,150.75,150.66,26.61205989]
[1642072793503,27.57252248,150.75,150.67,9.9538]
[1642072793704,12.6073,150.74,150.66,26.36205989]
[1642072793902,12.6073,150.74,150.66,23.70805989]
[1642072794404,12.8573,150.74,150.66,23.70805989]
[1642072795204,12.8573,150.74,150.66,33.66245989]
[1642072796506,12.8573,150.74,150.66,23.70805989]
[1642072796709,12.8573,150.74,150.65,2.654]
[1642072796907,1.64999521,150.73,150.62,72.2772]
[1642072797107,9.9566,150.69,150.62,72.2772]
[1642072797506,10.2066,150.69,150.62,72.2772]
[1642072797709,10.2066,150.69,150.62,95.85509817]
[1642072798107,0.25,150.69,150.63,9.9564]
[1642072798308,0.25,150.69,150.63,12.6104]
[1642072798511,28.94938161,150.71,150.63,12.6104]
[1642072800210,9.9557,150.7,150.63,12.6104]
[1642072800613,10.2057,150.7,150.63,12.6104]
[1642072801412,10.2057,150.7,150.63,9.9564]
[1642072802316,12.8597,150.7,150.63,9.9564]
[1642072803344,2.904,150.7,150.63,9.9564]
[1642072803547,0.25,150.7,150.64,2.654]
[1642072803744,0.25,150.7,150.66,9.9543]
[1642072803945,3.79867081,150.72,150.66,9.9543]
[1642072804348,3.79867081,150.73,150.66,35.75209747]
[1642072805444,2.654,150.74,150.66,35.75209747]
[1642072805643,34.29253856,150.75,150.66,35.75209747]
[1642072806044,3.79867081,150.75,150.66,35.75209747]
[1642072806247,3.79867081,150.75,150.66,101.85209747]
[1642072806847,3.79867081,150.75,150.67,2.654]
[1642072807045,3.79867081,150.75,150.71,9.9505]
[1642072807246,3.78320818,150.75,150.72,30.01838489]
[1642072807445,3.78320818,150.75,150.73,5.56439994]
[1642072808146,3.78320818,150.75,150.73,15.51419994]
[1642072808349,3.79867081,150.76,150.73,9.9498]
[1642072809449,3.79867081,150.79,150.73,9.9498]
[1642072809846,3.79867081,150.79,150.74,65.85]
[1642072810046,3.79867081,150.79,150.76,9.9464]
[1642072810450,3.79867081,150.79,150.77,25.1661245]
[1642072810850,7.58322262,150.81,150.77,25.1661245]
[1642072811052,7.58322262,150.81,150.78,9.9462]
[1642072811850,3.79867081,150.82,150.78,9.9462]
[1642072812352,3.79867081,150.82,150.79,65.85]
[1642072812551,4.04867081,150.82,150.79,65.85]
[1642072812751,4.04867081,150.82,150.8,9.9439]
[1642072812951,4.04867081,150.82,150.81,26.6862623]
[1642072813151,0.25,150.82,150.81,26.6862623]
[1642072814251,0.25,150.82,150.81,36.6301623]
[1642072816855,3.79867081,150.86,150.81,36.6301623]
[1642072817055,3.79867081,150.86,150.81,42.1861623]
[1642072817755,2.652,150.87,150.81,42.1861623]
[1642072817955,5.32966703,150.88,150.81,42.1861623]
[1642072818155,5.32966703,150.88,150.82,65.85]
[1642072818354,5.57966703,150.88,150.82,65.85]
[1642072818554,5.32966703,150.88,150.85,33.62211524]
[1642072818754,6.44867081,150.89,150.85,33.62211524]
[1642072818960,3.79867081,150.89,150.85,33.62211524]
[1642072819762,3.79867081,150.91,150.85,33.62211524]
[1642072820960,2.65,150.93,150.85,33.62211524]
[1642072821564,2.9,150.93,150.85,99.47211524]
[1642072822165,0.25,150.93,150.86,2.65]
[1642072822366,0.25,150.93,150.88,9.9398]
[1642072822564,12.8398,150.94,150.88,36.12752379]
[1642072822766,10.1898,150.94,150.88,36.12752379]
[1642072823166,0.25,150.94,150.88,36.12752379]
[1642072823566,12.5892,150.95,150.88,36.12752379]
[1642072823567,12.8392,150.95,150.88,36.12752379]
[1642072824365,10.1892,150.95,150.88,36.12752379]
[1642072825469,27.86589521,150.98,150.88,36.37752379]
[1642072825669,26.2159,150.98,150.88,36.37752379]
[1642072825970,6.78143164,150.99,150.88,36.63752379]
[1642072826270,4.13143164,150.99,150.88,36.63752379]
[1642072826669,4.13143164,150.99,150.88,102.22752379]
[1642072826968,4.38143164,150.99,150.88,102.22752379]
[1642072827171,2.65,150.98,150.88,36.12752379]
[1642072827471,31.89241692,150.97,150.88,26.18772379]
[1642072827670,2.65,150.96,150.88,26.18772379]
[1642072827869,4.29999521,150.96,150.88,26.18772379]
[1642072828070,4.54999521,150.96,150.88,26.18772379]
[1642072828369,9.9399,150.94,150.85,2.65]
[1642072828569,2.65,150.93,150.81,2.65]
[1642072828797,4.29999521,150.93,150.79,115.1122]
[1642072828969,28.66789521,150.93,150.79,115.1122]
[1642072829373,28.66789521,150.93,150.8,31.14544234]
[1642072829574,28.66789521,150.93,150.81,2.65]
[1642072829872,9.9428,150.89,150.83,41.4684379]
[1642072830076,10.1928,150.89,150.83,31.5256379]
[1642072831274,10.1928,150.89,150.81,23.7923]
[1642072831475,10.1928,150.89,150.8,2.65]
[1642072831675,10.1928,150.89,150.8,12.15]
[1642072832275,10.1928,150.89,150.81,36.41148265]
[1642072833877,0.25,150.89,150.81,36.67148265]
[1642072834076,2.65,150.9,150.82,9.5]
[1642072834376,26.7679,150.93,150.85,9.9409]
[1642072834579,2.65,150.93,150.85,9.9409]
[1642072834776,2.65,150.93,150.86,22.54922087]
[1642072835182,9.9414,150.91,150.86,22.54922087]
[1642072835379,2.65,150.94,150.86,32.48972087]
[1642072835580,2.9,150.94,150.86,32.48972087]
[1642072836180,9.9405,150.93,150.86,22.54922087]
[1642072836621,9.9405,150.93,150.86,25.19922087]
[1642072837022,29.84219834,150.92,150.86,2.65]
[1642072837222,9.9417,150.91,150.85,12.5915]
[1642072837824,2.65,150.94,150.85,12.5915]
[1642072838022,3.79867081,150.95,150.85,78.6915]
[1642072838423,3.79867081,150.94,150.85,78.6915]
[1642072838827,3.79867081,150.94,150.86,29.3589876]
[1642072839024,3.79867081,150.94,150.9,9.9383]
[1642072839626,13.73677081,150.96,150.9,9.9383]
[1642072840228,13.73677081,150.96,150.89,34.57824665]
[1642072840428,2.65,150.95,150.89,9.9389]
[1642072841026,12.8389,150.95,150.89,9.9389]
[1642072841326,23.1647493,150.94,150.87,2.65]
[1642072841526,2.65,150.93,150.87,2.65]
[1642072841926,2.9,150.93,150.87,2.65]
[1642072842127,9.9409,150.92,150.87,2.65]
[1642072842329,9.9409,150.92,150.84,24.63085841]
[1642072842528,10.1909,150.92,150.85,2.65]
[1642072842728,13.9676581,150.92,150.84,27.28085841]
[1642072842932,6.6767581,150.92,150.85,9.9412]
[1642072843130,4.0267581,150.92,150.85,9.9412]
[1642072843534,4.0267581,150.92,150.85,19.4412]
[1642072843728,0.25,150.92,150.85,19.4412]
[1642072844131,13.98937081,150.93,150.85,19.4412]
[1642072845534,3.7826894,150.92,150.85,19.4412]
[1642072845729,7.58136021,150.92,150.85,19.4412]
[1642072845931,7.83136021,150.92,150.85,19.4412]
[1642072846344,7.83136021,150.92,150.85,22.0912]
[1642072846633,0.25,150.92,150.85,22.0912]
[1642072847034,4.04867081,150.93,150.85,22.0912]
[1642072847631,7.58748963,150.91,150.85,87.9412]
[1642072848035,7.83748963,150.91,150.85,87.9412]
[1642072848433,4.04867081,150.91,150.85,87.9412]
[1642072849734,3.79867081,150.91,150.85,88.1912]
[1642072851035,3.79867081,150.91,150.85,89.61987448]
[1642072851436,4.04867081,150.91,150.85,88.5196972]
[1642072851635,0.25,150.91,150.85,88.5196972]
[1642072852639,4.04867081,150.93,150.85,88.5196972]
[1642072853237,3.79867081,150.93,150.85,88.5196972]
[1642072853853,3.79867081,150.93,150.86,1.10017728]
[1642072854039,3.79867081,150.93,150.89,9.933]
[1642072854239,0.33276083,150.99,150.91,38.0]
[1642072854439,0.33276083,150.99,150.92,12.149]
[1642072854638,3.78863334,150.95,150.93,9.5]
[1642072854839,3.78863334,150.95,150.93,75.35]
[1642072855070,3.78863334,150.95,150.94,9.9323]
[1642072855271,3.78863334,150.95,150.94,32.61541225]
[1642072855774,3.78863334,150.95,150.94,98.46541225]
[1642072856573,0.33276083,150.99,150.94,98.46541225]
[1642072857174,0.33276083,150.99,150.94,98.72541225]
[1642072857374,2.649,151.02,150.96,65.85]
[1642072857578,2.649,151.06,151.01,9.9295]
[1642072857774,25.4752,151.1,151.01,9.9295]
[1642072857973,56.24607006,151.1,151.02,23.1408872]
[1642072858173,9.9297,151.09,151.02,23.1408872]
[1642072858377,2.648,151.08,151.02,23.1408872]
[1642072858974,3.77739406,151.05,151.02,23.1408872]
[1642072859174,3.77739406,151.05,151.03,9.9295]
[1642072859374,3.77739406,151.05,151.02,23.1408872]
[1642072859977,3.03219997,151.04,150.99,98.9482]
[1642072860176,0.25,151.05,150.99,98.9482]
[1642072860376,0.25,151.04,150.99,98.9482]
[1642072860581,0.25,151.05,150.99,98.9482]
[1642072860981,0.25,151.05,151.02,9.9303]
[1642072861383,2.648,151.07,151.02,9.9303]
[1642072861581,2.898,151.07,151.02,9.9303]
[1642072862682,12.8289,151.07,151.0,9.9312]
[1642072862882,12.8289,151.07,150.97,9.5]
[1642072863683,31.5768085,151.06,150.97,9.5]
[1642072863884,12.5803,151.05,150.98,33.41709037]
[1642072864084,10.1823,151.05,150.98,9.9326]
[1642072864383,0.25,151.05,150.95,9.5]
[1642072864584,2.648,151.04,150.91,2.648]
[1642072864782,2.648,151.04,150.9,12.149]
[1642072864985,2.898,151.04,150.9,12.149]
[1642072865284,27.69870632,151.03,150.9,42.42802065]
[1642072865483,2.649,151.02,150.9,42.42802065]
[1642072865683,2.649,151.02,150.92,9.936]
[1642072865884,0.25,151.03,150.93,9.5]
[1642072865885,2.649,151.03,150.93,9.5]
[1642072866087,2.649,151.04,150.93,9.5]
[1642072866385,3.7650427,151.03,150.93,9.5]
[1642072866785,27.39722451,151.02,150.9,32.92802065]
[1642072866984,29.04721972,151.02,150.9,32.92802065]
[1642072867386,1.64999521,151.01,150.9,32.92802065]
[1642072867587,23.99630374,150.99,150.9,30.27902065]
[1642072867786,2.649,150.98,150.9,30.27902065]
[1642072867986,2.899,150.98,150.89,33.7134]
[1642072868186,12.8358,150.98,150.89,9.5]
[1642072868385,14.48579521,150.98,150.88,2.649]
[1642072868589,14.48579521,150.98,150.8,517.37304859]
[1642072868590,14.48579521,150.98,150.83,2.65]
[1642072868789,9.5,150.97,150.82,2.65]
[1642072868987,30.78263233,150.96,150.81,2.65]
[1642072869187,9.943,150.9,150.8,517.37304859]
[1642072869388,2.65,150.89,150.8,517.37304859]
[1642072869589,0.25,150.9,150.8,517.37304859]
[1642072869788,4.29999521,150.88,150.76,12.15]
[1642072869988,29.60464845,150.88,150.77,28.1952151]
[1642072870191,9.9458,150.85,150.78,9.9455]
[1642072870590,10.1958,150.85,150.78,9.9455]
[1642072871994,9.9458,150.85,150.78,9.9455]
[1642072872192,35.7993,150.91,150.78,11.02479]
[1642072872393,2.652,150.91,150.79,68.502]
[1642072872594,2.65,150.92,150.83,9.9421]
[1642072872794,12.15,150.94,150.84,2.65]
[1642072872995,2.65,150.94,150.85,22.7990206]
[1642072873195,9.941,150.92,150.86,2.65]
[1642072873394,29.83532585,150.95,150.86,2.65]
[1642072873597,27.18532585,150.95,150.86,78.4407]
[1642072873830,2.65,150.98,150.86,87.9407]
[1642072874595,2.65,150.98,150.86,88.2007]
[1642072874796,22.94973673,150.97,150.86,88.2007]
[1642072874995,23.19973673,150.97,150.86,88.2007]
[1642072875195,9.939,150.95,150.86,88.2007]
[1642072875396,9.939,150.95,150.86,88.1907]
[1642072875595,10.189,150.95,150.86,88.1907]
[1642072875994,10.189,150.95,150.86,87.9407]
[1642072876298,10.189,150.95,150.86,22.0907]
[1642072877196,10.189,150.95,150.86,87.9407]
[1642072877396,0.25,150.95,150.86,87.9407]
[1642072877600,2.9,150.96,150.86,88.2007]
[1642072877799,0.25,150.96,150.86,88.2007]
[1642072877998,2.65,150.98,150.86,89.52999]
[1642072878198,24.3664,151.07,150.86,89.52999]
[1642072878199,2.65,150.99,150.86,89.52999]
[1642072878398,2.65,151.01,150.86,95.52999]
[1642072878600,2.649,151.03,150.86,95.52999]
[1642072879101,31.29038503,151.02,150.86,95.52999]
[1642072879303,2.65,151.01,150.86,95.52999]
[1642072879498,2.65,151.01,150.86,119.55489]
[1642072879698,2.65,151.01,150.86,119.29489]
[1642072881000,2.9,151.01,150.86,119.55489]
[1642072881201,12.8352,151.01,150.86,119.30489]
[1642072883031,12.8352,151.01,150.86,119.55489]
[1642072884042,1.88697039,150.99,150.86,119.55489]
[1642072884433,2.13697039,150.99,150.86,119.55489]
[1642072885334,2.13697039,150.99,150.86,119.29489]
[1642072885732,2.13697039,150.99,150.86,118.2156]
[1642072886537,2.65,150.98,150.86,118.2156]
[1642072887033,2.9,150.98,150.86,118.2156]
[1642072887232,2.9,150.98,150.86,119.29489]
[1642072887633,2.65,150.98,150.86,248.94335267]
[1642072887835,1.88697039,150.99,150.86,248.94335267]
[1642072888034,2.13697039,150.99,150.86,248.94335267]
[1642072888235,1.88697039,150.99,150.86,260.07913355]
[1642072888636,1.88697039,150.99,150.88,118.71]
[1642072888837,1.88697039,151.01,150.93,9.9315]
[1642072889039,1.88697039,151.01,150.94,77.999]
[1642072889438,1.88697039,151.01,150.94,85.58829]
[1642072889838,1.88697039,151.01,150.95,24.47077803]
[1642072890039,1.88697039,151.01,150.97,9.9305]
[1642072890438,1.88697039,151.03,150.98,22.88877202]
[1642072890641,1.88697039,151.03,150.98,88.73877202]
[1642072891039,2.13697039,151.03,150.98,88.73877202]
[1642072891240,1.88697039,151.03,150.99,9.9305]
[1642072891442,1.88697039,151.04,150.99,19.4305]
[1642072891644,1.88697039,151.04,151.0,65.85]
[1642072892044,1.88697039,151.04,151.0,72.36]
[1642072892242,1.88697039,151.04,151.01,37.60546368]
[1642072892443,2.648,151.13,151.02,71.9279]
[1642072892644,1.88634234,151.06,151.03,9.5]
[1642072892843,3.77268468,151.11,151.04,2.648]
[1642072893043,3.77268468,151.11,151.05,9.5]
[1642072893244,3.77268468,151.11,151.06,2.646]
[1642072893446,3.77268468,151.11,151.09,9.9236]
[1642072893648,3.77268468,151.11,151.1,25.5683151]
[1642072893846,3.77268468,151.11,151.09,9.9236]
[1642072894047,6.80488465,151.11,151.09,9.9236]
[1642072894351,3.03219997,151.1,151.09,9.9236]
[1642072894747,3.03219997,151.11,151.09,9.9236]
[1642072894948,3.77268468,151.15,151.09,9.9236]
[1642072895951,39.34162131,151.16,151.09,9.9236]
[1642072896350,12.5713,151.16,151.09,9.9236]
[1642072896955,12.8213,151.16,151.09,9.9236]
[1642072897552,2.896,151.16,151.09,9.9236]
[1642072898251,28.10142941,151.15,151.09,9.9236]
[1642072898451,28.35142941,151.15,151.09,9.9236]
[1642072898651,86.0,151.13,151.06,33.0842]
[1642072898855,2.646,151.12,151.06,33.0842]
[1642072899052,2.896,151.12,151.06,33.0842]
[1642072899253,4.54599521,151.12,151.06,33.0842]
[1642072899455,1.64999521,151.11,151.06,33.0842]
[1642072899653,1.64999521,151.11,151.02,28.37370565]
[1642072899854,0.25,151.11,151.04,9.9286]
[1642072900378,0.25,151.11,151.05,2.646]
[1642072900577,0.25,151.11,151.03,2.646]
[1642072900981,2.896,151.14,151.03,68.496]
[1642072901182,12.8226,151.14,151.06,31.27342798]
[1642072901382,10.1766,151.14,151.06,31.27342798]
[1642072903085,0.25,151.14,151.06,31.27342798]
[1642072903487,12.8219,151.15,151.06,9.927]
[1642072903882,12.8219,151.15,151.04,2.646]
[1642072904083,12.8219,151.15,151.04,12.5741]
[1642072905786,23.97189521,151.15,151.04,2.646]
[1642072906991,23.97189521,151.15,151.03,22.93718903]
[1642072907391,23.97189521,151.15,151.03,32.86638903]
[1642072912099,3.76271317,151.14,151.03,32.86638903]
[1642072912296,9.9285,151.11,151.03,32.86638903]
[1642072912499,10.1785,151.11,151.03,32.86638903]
[1642072914303,0.25,151.11,151.03,32.86638903]
[1642072914498,10.1779,151.12,151.03,32.86638903]
[1642072914798,10.1779,151.12,151.05,9.9277]
[1642072915399,9.9279,151.12,151.05,9.9277]
[1642072916598,10.1779,151.12,151.05,9.9277]
[1642072917300,0.25,151.12,151.05,9.9277]
[1642072917502,10.1772,151.13,151.05,9.9277]
[1642072917800,0.25,151.13,151.05,9.9277]
[1642072918000,26.8752,151.14,151.05,9.9277]
[1642072918300,26.8752,151.14,151.06,24.96148504]
[1642072918501,10.1765,151.14,151.06,34.88848504]
[1642072919100,10.1765,151.14,151.06,9.927]
[1642072919301,10.1765,151.14,151.05,2.646]
[1642072919502,2.646,151.13,151.05,9.9281]
[1642072919701,9.9283,151.12,151.05,9.9281]
[1642072920105,0.25,151.12,151.05,36.51662364]
[1642072920901,0.25,151.12,151.05,9.9281]
[1642072921101,27.78149468,151.13,151.05,9.9281]
[1642072922202,37.70869468,151.13,151.05,9.9281]
[1642072922402,3.78769106,151.12,151.05,9.9281]
[1642072922805,3.78769106,151.12,151.05,75.7781]
[1642072923610,3.78769106,151.12,151.05,78.4241]
[1642072924005,4.03769106,151.12,151.05,78.4241]
[1642072924207,3.78769106,151.12,151.06,21.48192455]
[1642072924403,3.78769106,151.12,151.08,9.9259]
[1642072924805,3.78769106,151.12,151.04,24.5481]
[1642072925203,3.78769106,151.13,151.0,12.146]
[1642072925406,4.29599521,151.11,151.0,34.7616]
[1642072925603,1.89999521,151.11,151.01,23.8215755]
[1642072925803,2.646,151.1,151.01,26.4675755]
[1642072926004,2.896,151.1,151.01,26.4675755]
[1642072926403,0.25,151.1,151.01,26.4675755]
[1642072927005,2.648,151.09,151.01,26.4675755]
[1642072927206,9.9309,151.08,151.01,36.3980755]
[1642072927609,10.1809,151.08,151.01,36.3980755]
[1642072928708,0.25,151.08,151.01,36.3980755]
[1642072928908,0.25,151.08,151.02,65.85]
[1642072929112,10.1797,151.09,151.02,75.7797]
[1642072929908,0.25,151.09,151.02,75.7797]
[1642072930112,2.898,151.11,151.02,76.0297]
[1642072930311,0.25,151.11,151.03,2.646]
[1642072930513,5.89898288,151.13,151.05,9.9281]
[1642072931010,2.646,151.12,151.05,9.9281]
[1642072931412,9.9284,151.11,151.04,35.82735813]
[1642072931614,10.1784,151.11,151.04,35.82735813]
[1642072932118,13.96888198,151.11,151.04,35.82735813]
[1642072932815,10.1784,151.11,151.04,9.9288]
[1642072933116,10.1784,151.11,151.03,9.9293]
[1642072933313,12.8244,151.11,151.03,9.9293]
[1642072933512,10.1784,151.11,151.03,9.9293]
[1642072934114,3.79107489,151.1,151.03,9.9293]
[1642072934514,13.96987489,151.1,151.03,75.7793]
[1642072934717,4.04107489,151.1,151.03,75.7793]
[1642072935718,0.25,151.1,151.03,75.7793]
[1642072935919,0.25,151.1,151.07,9.9268]
[1642072936115,5.89898288,151.14,151.07,9.9268]
[1642072936515,9.9269,151.13,151.07,28.54689784]
[1642072936918,10.1769,151.13,151.07,28.54689784]
[1642072937115,0.25,151.13,151.07,28.54689784]
[1642072937317,5.64898288,151.14,151.07,28.54689784]
[1642072937622,3.7898215,151.12,151.07,28.54689784]
[1642072938421,3.7898215,151.13,151.07,28.54689784]
[1642072938617,0.25,151.12,151.07,28.54689784]
[1642072938818,13.9669215,151.13,151.06,9.9274]
[1642072940219,12.5736,151.12,151.06,9.9274]
[1642072940421,16.3634215,151.12,151.06,9.9274]
[1642072940620,16.6134215,151.12,151.06,9.9274]
[1642072941024,13.9674215,151.12,151.06,9.9274]
[1642072941447,10.1776,151.12,151.06,9.9274]
[1642072941744,0.25,151.12,151.06,9.9274]
[1642072941946,12.823,151.13,151.06,9.9274]
[1642072943049,3.78785274,151.12,151.06,9.9274]
[1642072943547,4.03785274,151.12,151.06,9.9274]
[1642072944749,4.03830647,151.12,151.06,9.9274]
[1642072945250,13.96590647,151.12,151.06,9.9274]
[1642072945951,13.71590647,151.12,151.06,9.9274]
[1642072947553,13.96590647,151.12,151.06,9.9274]
[1642072947953,30.44688616,151.11,151.06,9.9274]
[1642072948354,30.69688616,151.11,151.06,9.9274]
[1642072950256,30.69688616,151.11,151.02,2.646]
[1642072950457,2.646,151.1,151.0,138.9708]
[1642072950660,2.646,151.1,151.01,2.648]
[1642072950857,2.896,151.1,151.01,2.648]
[1642072951057,9.9303,151.08,151.01,2.648]
[1642072951259,9.9303,151.08,151.0,73.1208]
[1642072951458,10.1803,151.08,151.0,73.1208]
[1642072952258,10.1803,151.08,151.01,9.9305]
[1642072952658,10.1803,151.08,151.01,75.7805]
[1642072952859,0.25,151.08,151.01,75.7805]
[1642072953059,4.03830647,151.09,151.01,9.9305]
[1642072953259,0.25,151.09,151.01,9.9305]
[1642072953459,4.03830647,151.1,151.01,9.9305]
[1642072953659,2.648,151.09,151.01,9.9305]
[1642072953862,6.68630647,151.1,151.01,9.9305]
[1642072954259,9.9295,151.09,151.01,9.9305]
[1642072954460,10.1795,151.09,151.01,12.5785]
[1642072954660,28.897635,151.08,151.01,12.5785]
[1642072954860,28.897635,151.08,151.01,9.9305]
[1642072955061,29.147635,151.08,151.01,9.9305]
[1642072956261,10.1802,151.08,151.01,9.9305]
[1642072956663,0.25,151.08,151.01,9.9305]
[1642072957064,4.03830647,151.1,151.01,9.9305]
[1642072957265,4.03830647,151.1,151.02,91.04288544]
[1642072957564,3.78830647,151.1,151.05,75.7778]
[1642072957764,3.78830647,151.11,151.05,75.7778]
[1642072957963,3.78830647,151.11,151.05,101.9216243]
[1642072958565,32.08055111,151.13,151.05,75.7778]
[1642072958764,2.646,151.12,151.05,75.7778]
[1642072958967,2.896,151.12,151.05,75.7778]
[1642072959164,16.61322318,151.12,151.05,75.7778]
[1642072959965,12.824,151.12,151.05,75.7778]
[1642072960867,12.824,151.12,151.04,9.9288]
[1642072961066,12.824,151.12,151.03,24.2251]
[1642072962267,12.824,151.12,151.03,34.1544]
[1642072962871,3.7894714,151.11,151.03,24.2251]
[1642072963070,9.9307,151.08,151.01,2.646]
[1642072963472,10.1807,151.08,151.01,2.646]
[1642072963869,10.1807,151.08,151.0,73.1208]
[1642072965171,10.1807,151.08,151.01,9.9308]
[1642072970006,12.5791,151.07,151.01,9.9308]
[1642072970507,12.8291,151.07,151.01,9.9308]
[1642072970706,10.1811,151.07,151.01,9.9308]
[1642072975009,10.1811,151.07,150.98,2.648]
[1642072975210,2.648,151.06,150.96,2.648]
[1642072975410,9.9342,151.02,150.96,2.648]
[1642072975812,10.1842,151.02,150.96,2.648]
[1642072976111,10.1842,151.02,150.95,89.1121]
[1642072977014,10.1842,151.02,150.94,9.9355]
[1642072977215,9.9359,151.0,150.94,9.9355]
[1642072977417,9.9359,151.0,150.93,2.649]
[1642072977614,10.1859,151.0,150.93,2.649]
[1642072977823,2.649,150.99,150.91,413.4395026]
[1642072978016,2.899,150.99,150.92,30.93801021]
[1642072978514,9.9379,150.97,150.9,9.9379]
[1642072978714,9.9379,150.97,150.9,12.5869]
[1642072978915,10.1879,150.97,150.9,12.5869]
[1642072979315,10.1879,150.97,150.89,32.813]